[Event "Kragero Resort Chess A 2019"]
[Site "Kragero"]
[Date "2019.02.23"]
[Round "7.13"]
[White "Stefansson, Vignir Vatnar"]
[Black "Getz, Nicolai"]
[Result "1/2-1/2"]
[ECO "E92"]
[WhiteElo "2263"]
[BlackElo "2398"]
[Annotator "NA"]
[PlyCount "137"]
[EventDate "2019.02.20"]
[EventType "swiss"]
[EventCountry "NOR"]
[SourceTitle "playchess.com"]
[Source "ChessBase"]
[SourceQuality "1"]
[TimeControl "5400+30"]

1. d4 {[%emt 0:00:00]} Nf6 {[%emt 0:00:00]} 2. c4 {[%emt 0:00:00]} g6 {[%emt 0:00:00]} 3. Nc3 {[%emt 0:00:16]} Bg7 {[%emt 0:00:05]} 4. e4 {[%emt 0:00:06]} d6 {[%emt 0:00:03]} 5. Be2 {[%emt 0:00:07]} O-O {[%emt 0:00:04]} 6. Nf3 {[%emt 0:00:31]} e5 {[%emt 0:00:08]} 7. Be3 {[%emt 0:00:08]} Ng4 {[%emt 0:00:19]} 8. Bg5 {[%emt 0:00:48]} f6 {[%emt 0:00:06]} 9. Bc1 {[%emt 0:00:04]} Nc6 {[%emt 0:01:27]} 10. d5 {[%emt 0:00:08]} Nd4 {[%emt 0:04:15]} 11. h3 {[%emt 0:01:00]} Nxe2 {[%emt 0:01:20]} 12. Qxe2 {[%emt 0:00:16]} Nh6 {[%emt 0:00:03]} 13. g4 {[%emt 0:02:05]} Nf7 {[%emt 0:07:01]} 14. Be3 {[%emt 0:04:52]} c5 {[%emt 0:00:48]} 15. dxc6 {[%emt 0:18:47]} bxc6 {[%emt 0:00:10]} 16. O-O-O {[%emt 0:00:23]} Qa5 {[%emt 0:03:12]} 17. Qc2 {[%emt 0:08:00]} Be6 {[%emt 0:00:27]} 18. Nd2 {[%emt 0:00:02]} Qb4 {[%emt 0:06:02]} 19. Qa4 {[%emt 0:04:15]} a5 {[%emt 0:00:07]} 20. a3 {[%emt 0:08:41]} Qb7 {[%emt 0:00:12]} 21. Qc2 {[%emt 0:05:51]} Rab8 {[%emt 0:03:43]} 22. Na4 {[%emt 0:00:55]} Qa6 {[%emt 0:00:38]} 23. f3 {[%emt 0:09:01]} Rfd8 {[%emt 0:00:39]} 24. h4 {[%emt 0:00:35]} Bf8 {[%emt 0:04:32]} 25. h5 {[%emt 0:03:58]} g5 {[%emt 0:00:12]} 26. Kb1 {[%emt 0:03:02]} d5 {[%emt 0:04:14]} 27. Bc5 {[%emt 0:01:54]} Nd6 {[%emt 0:00:22]} 28. Bxd6 {[%emt 0:04:13]} Bxd6 {[%emt 0:00:07]} 29. Nb3 {[%emt 0:00:10]} d4 {[%emt 0:06:10]} 30. Rc1 {[%emt 0:02:28]} Qa7 {[%emt 0:08:42]} 31. Ka2 {[%emt 0:01:17]} d3 {[%emt 0:08:29]} 32. Qd2 {[%emt 0:02:19]} Rb4 {[%emt 0:08:01]} 33. axb4 {[%emt 0:02:29]} axb4 {[%emt 0:00:05]} 34. Kb1 {[%emt 0:01:48]} Qxa4 {[%emt 0:00:05]} 35. Qxd3 {[%emt 0:00:10]} Bc7 {[%emt 0:02:42]} 36. Qe3 {[%emt 0:01:02]} Ra8 {[%emt 0:02:53]} 37. Kc2 {[%emt 0:02:02]} Qa6 {[%emt 0:02:20]} 38. Nd2 {[%emt 0:03:45]} Bxc4 {[%emt 0:03:05]} 39. Ra1 {[%emt 0:00:58]} Ba2 {[%emt 0:00:04]} 40. Qd3 {[%emt 0:06:16]} Qxd3+ {[%emt 0:02:41]} 41. Kxd3 {[%emt 0:00:05]} Bb6 {[%emt 0:00:06]} 42. Kc2 {[%emt 0:01:25]} Bd4 {[%emt 0:00:15]} 43. Nb3 {[%emt 0:00:34]} c5 {[%emt 0:01:32]} 44. Nxd4 {[%emt 0:01:12]} exd4 {[%emt 0:00:08]} 45. b3 {[%emt 0:00:22]} Ra3 {[%emt 0:10:03]} 46. Kb2 {[%emt 0:00:18]} c4 {[%emt 0:00:21]} 47. bxc4 {[%emt 0:01:21]} Bxc4 {[%emt 0:00:06]} 48. Rxa3 {[%emt 0:00:03]} bxa3+ {[%emt 0:00:06]} 49. Kxa3 {[%emt 0:00:03]} Be2 {[%emt 0:00:05]} 50. Kb2 {[%emt 0:00:52]} Kf7 {[%emt 0:09:58]} 51. Rh3 {[%emt 0:00:31]} Ke6 {[%emt 0:00:04]} 52. Kc2 {[%emt 0:00:20]} Ke5 {[%emt 0:00:03]} 53. Kd2 {[%emt 0:00:12]} Bf1 {[%emt 0:00:03]} 54. Rh1 {[%emt 0:01:22]} Bg2 {[%emt 0:00:09]} 55. Ra1 {[%emt 0:00:06]} Bxf3 {[%emt 0:00:04]} 56. Ra5+ {[%emt 0:02:16]} Kxe4 {[%emt 0:00:08]} 57. Ra7 {[%emt 0:00:08]} Bxg4 {[%emt 0:02:01]} 58. Rxh7 {[%emt 0:00:09]} Bf5 {[%emt 0:02:33]} 59. Rf7 {[%emt 0:00:44]} g4 {[%emt 0:00:29]} 60. h6 {[%emt 0:02:33]} g3 {[%emt 0:00:36]} 61. h7 {[%emt 0:00:17]} Bxh7 {[%emt 0:01:06]} 62. Rxh7 {[%emt 0:00:05]} g2 {[%emt 0:00:15]} 63. Rg7 {[%emt 0:00:03]} Kf3 {[%emt 0:00:06]} 64. Kd3 {[%emt 0:00:05]} Kf2 {[%emt 0:01:10]} 65. Kxd4 {[%emt 0:00:05]} g1=Q {[%emt 0:00:06]} 66. Rxg1 {[%emt 0:00:05]} Kxg1 {[%emt 0:00:04]} 67. Ke4 {[%emt 0:00:05]} Kg2 {[%emt 0:00:05]} 68. Kf5 {[%emt 0:00:08]} Kg3 {[%emt 0:00:03]} 69. Kxf6 {[%emt 0:00:13]} 1/2-1/2

[Event "Kragero Resort Chess A 2019"]
[Site "Kragero"]
[Date "2019.02.23"]
[Round "7.14"]
[White "Mihajlov, Sebastian"]
[Black "Nordquelle, Daniel"]
[Result "1/2-1/2"]
[ECO "B90"]
[WhiteElo "2357"]
[BlackElo "2235"]
[Annotator "NA"]
[PlyCount "43"]
[EventDate "2019.02.20"]
[EventType "swiss"]
[EventCountry "NOR"]
[SourceTitle "playchess.com"]
[Source "ChessBase"]
[SourceQuality "1"]
[TimeControl "5400+30"]

1. e4 {[%emt 0:03:14]} c5 {[%emt 0:00:00]} 2. Nf3 {[%emt 0:00:08]} d6 {[%emt 0:00:00]} 3. d4 {[%emt 0:00:04]} cxd4 {[%emt 0:00:00]} 4. Nxd4 {[%emt 0:00:04]} Nf6 {[%emt 0:00:00]} 5. Nc3 {[%emt 0:00:05]} a6 {[%emt 0:00:01]} 6. f3 {[%emt 0:02:03]} h5 {[%emt 0:07:58]} 7. Be3 {[%emt 0:02:01]} e5 {[%emt 0:00:07]} 8. Nb3 {[%emt 0:00:04]} Be6 {[%emt 0:00:05]} 9. Nd5 {[%emt 0:01:11]} Bxd5 {[%emt 0:01:24]} 10. exd5 {[%emt 0:00:08]} g6 {[%emt 0:00:05]} 11. Qd2 {[%emt 0:00:50]} b6 {[%emt 0:01:40]} 12. Be2 {[%emt 0:01:28]} Nbd7 {[%emt 0:00:10]} 13. c4 {[%emt 0:00:21]} Bg7 {[%emt 0:00:34]} 14. O-O {[%emt 0:00:33]} a5 {[%emt 0:14:26]} 15. Rac1 {[%emt 0:01:57]} O-O {[%emt 0:07:01]} 16. Na1 {[%emt 0:03:07]} Nc5 {[%emt 0:10:32]} 17. Nc2 {[%emt 0:08:52]} Qd7 {[%emt 0:02:27]} 18. Na3 {[%emt 0:07:12]} e4 {[%emt 0:03:04]} 19. f4 {[%emt 0:02:12]} Ng4 {[%emt 0:00:21]} 20. Bxg4 {[%emt 0:00:16]} hxg4 {[%emt 0:01:08]} 21. Nb5 {[%emt 0:03:58]} f5 {[%emt 0:08:00]} 22. Bd4 {[%emt 0:10:26]} 1/2-1/2

[Event "Kragero Resort Chess A 2019"]
[Site "Kragero"]
[Date "2019.02.23"]
[Round "7.15"]
[White "Doluhanova, Evgeniya"]
[Black "Vitenberg, Noam Aviv"]
[Result "1-0"]
[ECO "B13"]
[WhiteElo "2348"]
[BlackElo "2180"]
[Annotator "NA"]
[PlyCount "147"]
[EventDate "2019.02.20"]
[EventType "swiss"]
[EventCountry "NOR"]
[SourceTitle "playchess.com"]
[Source "ChessBase"]
[SourceQuality "1"]
[TimeControl "5400+30"]

1. e4 {[%emt 0:00:18]} c6 {[%emt 0:00:00]} 2. d4 {[%emt 0:00:08]} d5 {[%emt 0:00:09]} 3. exd5 {[%emt 0:01:10]} cxd5 {[%emt 0:00:05]} 4. Bf4 {[%emt 0:00:02]} Nc6 {[%emt 0:00:06]} 5. c3 {[%emt 0:00:09]} Bf5 {[%emt 0:00:10]} 6. Nd2 {[%emt 0:00:19]} e6 {[%emt 0:00:31]} 7. Qb3 {[%emt 0:02:38]} Bd6 {[%emt 0:05:10]} 8. Qxb7 {[%emt 0:05:48]} Bxf4 {[%emt 0:00:19]} 9. Qxc6+ {[%emt 0:00:03]} Kf8 {[%emt 0:00:09]} 10. Ngf3 {[%emt 0:01:24]} Rb8 {[%emt 0:10:57]} 11. Qa4 {[%emt 0:00:54]} Ne7 {[%emt 0:02:14]} 12. b4 {[%emt 0:03:47]} Qc7 {[%emt 0:02:05]} 13. Qa3 {[%emt 0:02:19]} g5 {[%emt 0:07:48]} 14. g3 {[%emt 0:12:04]} Bd6 {[%emt 0:01:06]} 15. Qb2 {[%emt 0:04:20]} Kg7 {[%emt 0:05:07]} 16. Nb3 {[%emt 0:09:51]} Be4 {[%emt 0:34:58]} 17. Bg2 {[%emt 0:02:11]} a5 {[%emt 0:01:07]} 18. a3 {[%emt 0:00:28]} Rhc8 {[%emt 0:04:21]} 19. Rc1 {[%emt 0:07:55]} a4 {[%emt 0:01:46]} 20. Nbd2 {[%emt 0:10:11]} g4 {[%emt 0:00:54]} 21. Nh4 {[%emt 0:00:24]} Bd3 {[%emt 0:00:36]} 22. Bf1 {[%emt 0:00:34]} Bxf1 {[%emt 0:02:02]} 23. Nxf1 {[%emt 0:03:32]} e5 {[%emt 0:06:07]} 24. Ne3 {[%emt 0:05:18]} exd4 {[%emt 0:02:10]} 25. Nhf5+ {[%emt 0:06:16]} Nxf5 {[%emt 0:00:08]} 26. Nxf5+ {[%emt 0:00:03]} Kh8 {[%emt 0:01:26]} 27. Nxd4 {[%emt 0:06:53]} Re8+ {[%emt 0:00:43]} 28. Kd1 {[%emt 0:00:58]} Qc4 {[%emt 0:02:34]} 29. Qd2 {[%emt 0:04:42]} Re4 {[%emt 0:00:58]} 30. Re1 {[%emt 0:01:24]} Rbe8 {[%emt 0:00:38]} 31. Rxe4 {[%emt 0:00:53]} Rxe4 {[%emt 0:00:37]} 32. Nf5 {[%emt 0:03:44]} Be5 {[%emt 0:06:31]} 33. Ne3 {[%emt 0:00:38]} Qb3+ {[%emt 0:00:35]} 34. Qc2 {[%emt 0:01:27]} Qxa3 {[%emt 0:01:51]} 35. Nxd5 {[%emt 0:01:52]} Rc4 {[%emt 0:00:20]} 36. Qe2 {[%emt 0:02:11]} Qb3+ {[%emt 0:00:33]} 37. Qc2 {[%emt 0:00:49]} Qa3 {[%emt 0:00:58]} 38. Ke2 {[%emt 0:00:27]} Bg7 {[%emt 0:00:38]} 39. Qd2 {[%emt 0:00:28]} Re4+ {[%emt 0:00:19]} 40. Ne3 {[%emt 0:00:13]} Re8 {[%emt 0:00:39]} 41. Qc2 {[%emt 0:01:02]} Rc8 {[%emt 0:00:30]} 42. Nd5 {[%emt 0:00:23]} Re8+ {[%emt 0:00:22]} 43. Kf1 {[%emt 0:00:43]} Rc8 {[%emt 0:00:15]} 44. Re1 {[%emt 0:00:23]} Rd8 {[%emt 0:00:27]} 45. Rd1 {[%emt 0:00:39]} h6 {[%emt 0:00:33]} 46. Ne3 {[%emt 0:00:25]} Rc8 {[%emt 0:00:31]} 47. Nd5 {[%emt 0:00:32]} Rd8 {[%emt 0:00:28]} 48. Ne3 {[%emt 0:00:35]} Rc8 {[%emt 0:00:08]} 49. b5 {[%emt 0:00:28]} Qxc3 {[%emt 0:01:17]} 50. Qxa4 {[%emt 0:00:08]} h5 {[%emt 0:00:19]} 51. b6 {[%emt 0:00:22]} Rb8 {[%emt 0:00:33]} 52. Qb5 {[%emt 0:00:31]} Qf6 {[%emt 0:00:30]} 53. Qxh5+ {[%emt 0:00:21]} Kg8 {[%emt 0:00:06]} 54. Qxg4 {[%emt 0:00:33]} Qc6 {[%emt 0:01:02]} 55. Kg1 {[%emt 0:00:34]} Kf8 {[%emt 0:00:26]} 56. Qb4+ {[%emt 0:00:29]} Kg8 {[%emt 0:00:30]} 57. Nd5 {[%emt 0:00:43]} Qe6 {[%emt 0:00:24]} 58. Ne7+ {[%emt 0:00:36]} Kh7 {[%emt 0:00:31]} 59. Rd6 {[%emt 0:00:38]} Qxe7 {[%emt 0:00:42]} 60. Rh6+ {[%emt 0:00:05]} Kxh6 {[%emt 0:00:10]} 61. Qxe7 {[%emt 0:00:06]} Rxb6 {[%emt 0:00:12]} 62. Qxf7 {[%emt 0:00:18]} Rg6 {[%emt 0:00:19]} 63. Kg2 {[%emt 0:00:06]} Bf6 {[%emt 0:00:13]} 64. f4 {[%emt 0:00:37]} Bg7 {[%emt 0:00:08]} 65. h4 {[%emt 0:00:16]} Rf6 {[%emt 0:00:20]} 66. Qd5 {[%emt 0:00:21]} Kh7 {[%emt 0:00:39]} 67. Qe4+ {[%emt 0:00:18]} Kg8 {[%emt 0:00:12]} 68. g4 {[%emt 0:00:04]} Rf7 {[%emt 0:00:20]} 69. g5 {[%emt 0:00:06]} Kf8 {[%emt 0:00:11]} 70. Qa8+ {[%emt 0:00:15]} Ke7 {[%emt 0:00:12]} 71. Qb7+ {[%emt 0:00:03]} Kf8 {[%emt 0:00:07]} 72. Qc8+ {[%emt 0:00:03]} Ke7 {[%emt 0:00:05]} 73. f5 {[%emt 0:00:08]} Be5 {[%emt 0:00:31]} 74. Qe6+ {[%emt 0:00:08]} 1-0

[Event "Kragero Resort Chess A 2019"]
[Site "Kragero"]
[Date "2019.02.23"]
[Round "7.16"]
[White "Wedda, Dries"]
[Black "Gharibyan, Mamikon"]
[Result "0-1"]
[ECO "E15"]
[WhiteElo "2173"]
[BlackElo "2318"]
[Annotator "NA"]
[PlyCount "60"]
[EventDate "2019.02.20"]
[EventType "swiss"]
[EventCountry "NOR"]
[SourceTitle "playchess.com"]
[Source "ChessBase"]
[SourceQuality "1"]
[TimeControl "5400+30"]

1. d4 {[%emt 0:00:00]} Nf6 {[%emt 0:00:00]} 2. c4 {[%emt 0:00:00]} e6 {[%emt 0:00:24]} 3. g3 {[%emt 0:00:00]} d5 {[%emt 0:00:54]} 4. Nf3 {[%emt 0:00:59]} Bb4+ {[%emt 0:03:12]} 5. Bd2 {[%emt 0:00:14]} Be7 {[%emt 0:01:45]} 6. Bg2 {[%emt 0:00:43]} O-O {[%emt 0:00:10]} 7. O-O {[%emt 0:00:08]} c6 {[%emt 0:00:39]} 8. Bc3 {[%emt 0:02:04]} b6 {[%emt 0:02:22]} 9. Nbd2 {[%emt 0:14:19]} Nbd7 {[%emt 0:01:48]} 10. Qc2 {[%emt 0:07:36]} Ba6 {[%emt 0:05:18]} 11. b3 {[%emt 0:06:29]} c5 {[%emt 0:02:23]} 12. Qb2 {[%emt 0:06:32]} Rc8 {[%emt 0:01:48]} 13. Rac1 dxc4 {[%emt 0:11:29]} 14. bxc4 {[%emt 0:06:19]} Qc7 {[%emt 0:01:37]} 15. Rfe1 {[%emt 0:08:05]} cxd4 {[%emt 0:01:33]} 16. Nxd4 {[%emt 0:01:15]} Bb7 {[%emt 0:00:53]} 17. e4 {[%emt 0:01:39]} Nc5 {[%emt 0:19:30]} 18. Qb1 {[%emt 0:02:13]} Rfd8 {[%emt 0:05:07]} 19. N2b3 {[%emt 0:01:40]} Qb8 {[%emt 0:13:05]} 20. Nxc5 {[%emt 0:13:26]} Bxc5 {[%emt 0:01:34]} 21. Qb2 {[%emt 0:00:45]} Ng4 {[%emt 0:03:07]} 22. e5 {[%emt 0:10:57]} Bxg2 {[%emt 0:01:27]} 23. Kxg2 {[%emt 0:00:02]} Nxe5 {[%emt 0:00:23]} 24. Rxe5 {[%emt 0:04:05]} Qxe5 {[%emt 0:00:14]} 25. Nf3 {[%emt 0:00:01]} Qe4 {[%emt 0:00:30]} 26. Re1 {[%emt 0:00:47]} Qg6 {[%emt 0:01:04]} 27. Ne5 {[%emt 0:03:44]} Qf5 {[%emt 0:00:22]} 28. f3 {[%emt 0:00:54]} f6 {[%emt 0:01:09]} 29. Ng4 {[%emt 0:00:13]} Rd3 {[%emt 0:00:27]} 30. Rf1 {[%emt 0:01:19]} h5 {[%emt 0:00:17]} 0-1

[Event "Kragero Resort Chess A 2019"]
[Site "Kragero"]
[Date "2019.02.23"]
[Round "7.17"]
[White "Flasen, Aleksander"]
[Black "Fossum, Oystein Boyum"]
[Result "0-1"]
[ECO "B31"]
[WhiteElo "2036"]
[BlackElo "2250"]
[Annotator "NA"]
[PlyCount "70"]
[EventDate "2019.02.20"]
[EventType "swiss"]
[EventCountry "NOR"]
[SourceTitle "playchess.com"]
[Source "ChessBase"]
[SourceQuality "1"]
[TimeControl "5400+30"]

1. e4 {[%emt 0:00:00]} c5 {[%emt 0:02:40]} 2. Nf3 {[%emt 0:00:00]} Nc6 {[%emt 0:00:06]} 3. Bb5 {[%emt 0:00:31]} g6 {[%emt 0:00:10]} 4. O-O {[%emt 0:01:00]} Bg7 {[%emt 0:00:06]} 5. Re1 {[%emt 0:01:15]} e5 {[%emt 0:01:30]} 6. Bxc6 {[%emt 0:02:56]} dxc6 {[%emt 0:00:08]} 7. d3 {[%emt 0:05:00]} Qe7 {[%emt 0:00:31]} 8. h3 {[%emt 0:06:33]} Nf6 {[%emt 0:01:07]} 9. Bg5 {[%emt 0:01:59]} h6 {[%emt 0:01:40]} 10. Bxf6 {[%emt 0:02:26]} Bxf6 {[%emt 0:07:49]} 11. a4 {[%emt 0:04:14]} h5 {[%emt 0:17:06]} 12. Nbd2 {[%emt 0:04:04]} g5 {[%emt 0:03:49]} 13. Nh2 {[%emt 0:08:31]} Be6 {[%emt 0:02:02]} 14. Ndf1 {[%emt 0:04:22]} O-O-O {[%emt 0:04:58]} 15. Ne3 {[%emt 0:02:12]} c4 {[%emt 0:03:12]} 16. Qe2 {[%emt 0:03:16]} cxd3 {[%emt 0:00:58]} 17. cxd3 {[%emt 0:00:08]} Qd7 {[%emt 0:01:43]} 18. Red1 {[%emt 0:01:41]} Bb3 {[%emt 0:03:08]} 19. Rd2 {[%emt 0:09:36]} Be7 {[%emt 0:02:46]} 20. d4 {[%emt 0:09:19]} exd4 {[%emt 0:01:50]} 21. Nf5 {[%emt 0:00:33]} Bc5 {[%emt 0:06:46]} 22. Qd3 {[%emt 0:03:16]} Bb4 {[%emt 0:02:35]} 23. Re2 {[%emt 0:01:08]} Be6 {[%emt 0:02:12]} 24. Nf3 {[%emt 0:01:58]} g4 {[%emt 0:07:00]} 25. hxg4 {[%emt 0:01:25]} hxg4 {[%emt 0:00:54]} 26. Ne5 {[%emt 0:01:37]} Qc7 {[%emt 0:01:03]} 27. Nxg4 {[%emt 0:01:00]} Bxf5 {[%emt 0:10:26]} 28. exf5 {[%emt 0:00:05]} Rh4 {[%emt 0:00:28]} 29. f3 {[%emt 0:02:44]} Qg3 {[%emt 0:01:32]} 30. f6 {[%emt 0:05:40]} Rdh8 {[%emt 0:01:39]} 31. Nf2 {[%emt 0:03:36]} Rh2 {[%emt 0:04:18]} 32. Qf5+ {[%emt 0:01:34]} Kd8 {[%emt 0:00:57]} 33. Re8+ {[%emt 0:05:35]} Rxe8 {[%emt 0:00:58]} 34. Qg4 {[%emt 0:00:42]} Rxg2+ {[%emt 0:00:20]} 35. Kh1 {[%emt 0:00:04]} Rh2# {[%emt 0:01:14]} 0-1

[Event "Kragero Resort Chess A 2019"]
[Site "Kragero"]
[Date "2019.02.23"]
[Round "7.18"]
[White "Abdrlauf, Elham"]
[Black "Hobber, Anders"]
[Result "0-1"]
[ECO "C01"]
[WhiteElo "2105"]
[BlackElo "2312"]
[Annotator "NA"]
[PlyCount "104"]
[EventDate "2019.02.20"]
[EventType "swiss"]
[EventCountry "NOR"]
[SourceTitle "playchess.com"]
[Source "ChessBase"]
[SourceQuality "1"]
[TimeControl "5400+30"]

1. e4 {[%emt 0:00:00]} e6 {[%emt 0:00:00]} 2. d4 {[%emt 0:00:00]} d5 {[%emt 0:00:16]} 3. exd5 {[%emt 0:02:07]} exd5 {[%emt 0:00:06]} 4. Nf3 {[%emt 0:00:08]} Nc6 {[%emt 0:01:51]} 5. Bb5 {[%emt 0:00:12]} Bd6 {[%emt 0:01:37]} 6. O-O {[%emt 0:00:18]} Nge7 {[%emt 0:02:41]} 7. Re1 {[%emt 0:03:08]} O-O {[%emt 0:01:29]} 8. Bg5 {[%emt 0:02:20]} f6 {[%emt 0:07:34]} 9. Bh4 {[%emt 0:01:40]} Bg4 {[%emt 0:06:32]} 10. c3 {[%emt 0:00:54]} Nf5 {[%emt 0:02:14]} 11. Bg3 {[%emt 0:01:02]} Nxg3 {[%emt 0:01:13]} 12. hxg3 {[%emt 0:00:04]} Ne7 {[%emt 0:01:11]} 13. Nbd2 {[%emt 0:01:08]} c6 {[%emt 0:01:26]} 14. Bd3 {[%emt 0:00:39]} Qd7 {[%emt 0:01:32]} 15. Qc2 {[%emt 0:01:13]} g6 {[%emt 0:01:18]} 16. Nf1 {[%emt 0:03:40]} Rae8 {[%emt 0:03:34]} 17. Ne3 {[%emt 0:00:35]} Be6 {[%emt 0:01:19]} 18. b4 {[%emt 0:02:17]} Nc8 {[%emt 0:07:51]} 19. Nh4 {[%emt 0:07:28]} Bf7 {[%emt 0:05:53]} 20. f4 {[%emt 0:08:57]} Bc7 {[%emt 0:03:59]} 21. Re2 {[%emt 0:01:45]} Nd6 {[%emt 0:07:30]} 22. Rae1 {[%emt 0:01:27]} Ne4 {[%emt 0:04:53]} 23. Bxe4 {[%emt 0:02:23]} dxe4 {[%emt 0:03:22]} 24. Rf1 {[%emt 0:01:15]} f5 {[%emt 0:00:45]} 25. g4 {[%emt 0:00:26]} fxg4 {[%emt 0:07:42]} 26. g3 {[%emt 0:01:15]} Be6 {[%emt 0:02:43]} 27. Ref2 {[%emt 0:02:36]} Bf5 {[%emt 0:01:14]} 28. Rd2 {[%emt 0:01:23]} Qf7 {[%emt 0:02:34]} 29. Nhxf5 {[%emt 0:00:40]} gxf5 {[%emt 0:00:03]} 30. c4 {[%emt 0:00:16]} Re6 {[%emt 0:03:07]} 31. c5 {[%emt 0:01:16]} Rh6 {[%emt 0:01:26]} 32. Qc4 {[%emt 0:02:29]} Qxc4 {[%emt 0:00:57]} 33. Nxc4 {[%emt 0:00:01]} Rh3 {[%emt 0:00:51]} 34. Kg2 {[%emt 0:00:23]} Rf6 {[%emt 0:03:57]} 35. Rh1 {[%emt 0:00:35]} Rxh1 {[%emt 0:00:31]} 36. Kxh1 {[%emt 0:00:04]} Kf7 {[%emt 0:01:34]} 37. d5 {[%emt 0:01:57]} cxd5 {[%emt 0:00:01]} 38. Rxd5 {[%emt 0:00:06]} Ke6 {[%emt 0:00:08]} 39. Ne3 {[%emt 0:00:26]} h5 {[%emt 0:00:24]} 40. Rd1 {[%emt 0:00:58]} Rf7 {[%emt 0:01:52]} 41. b5 {[%emt 0:02:19]} h4 {[%emt 0:00:53]} 42. Nd5 {[%emt 0:00:57]} hxg3 {[%emt 0:04:15]} 43. Kg2 {[%emt 0:01:24]} Bb8 {[%emt 0:02:48]} 44. c6 {[%emt 0:00:06]} bxc6 {[%emt 0:00:11]} 45. bxc6 {[%emt 0:00:02]} Rh7 {[%emt 0:01:25]} 46. Kxg3 {[%emt 0:00:19]} Bd6 {[%emt 0:00:57]} 47. Kg2 {[%emt 0:00:40]} Rh8 {[%emt 0:00:50]} 48. Nc3 {[%emt 0:01:01]} Bxf4 {[%emt 0:01:20]} 49. Nb5 {[%emt 0:00:04]} Rh2+ {[%emt 0:00:49]} 50. Kg1 {[%emt 0:00:08]} g3 {[%emt 0:00:51]} 51. c7 {[%emt 0:00:08]} Be3+ {[%emt 0:00:17]} 52. Kf1 {[%emt 0:00:07]} g2+ {[%emt 0:00:03]} 0-1

[Event "Kragero Resort Chess A 2019"]
[Site "Kragero"]
[Date "2019.02.23"]
[Round "7.19"]
[White "Birkisson, Bjorn Holm"]
[Black "Lund, Gunnar"]
[Result "0-1"]
[ECO "D02"]
[WhiteElo "2078"]
[BlackElo "2211"]
[Annotator "NA"]
[PlyCount "60"]
[EventDate "2019.02.20"]
[EventType "swiss"]
[EventCountry "NOR"]
[SourceTitle "playchess.com"]
[Source "ChessBase"]
[SourceQuality "1"]
[TimeControl "5400+30"]

1. d4 {[%emt 0:05:02]} Nf6 {[%emt 0:00:00]} 2. Bf4 {[%emt 0:00:18]} d5 {[%emt 0:00:00]} 3. e3 {[%emt 0:00:08]} c5 {[%emt 0:00:00]} 4. c3 {[%emt 0:00:12]} Nc6 {[%emt 0:00:00]} 5. Nd2 {[%emt 0:00:25]} e6 {[%emt 0:00:01]} 6. Ngf3 {[%emt 0:00:40]} cxd4 {[%emt 0:00:47]} 7. exd4 {[%emt 0:00:56]} Nh5 {[%emt 0:00:12]} 8. Bg5 {[%emt 0:01:03]} f6 {[%emt 0:00:09]} 9. g4 {[%emt 0:10:59]} fxg5 {[%emt 0:04:13]} 10. gxh5 {[%emt 0:00:25]} Bd6 {[%emt 0:15:19]} 11. Rg1 {[%emt 0:03:03]} O-O {[%emt 0:01:53]} 12. Bd3 {[%emt 0:02:43]} g4 {[%emt 0:15:39]} 13. Rxg4 {[%emt 0:01:29]} e5 {[%emt 0:00:17]} 14. Rg1 {[%emt 0:17:27]} e4 {[%emt 0:04:57]} 15. Nxe4 {[%emt 0:00:11]} dxe4 {[%emt 0:00:23]} 16. Bxe4 {[%emt 0:12:58]} Qe7 {[%emt 0:07:43]} 17. Qd3 {[%emt 0:09:48]} Bf5 {[%emt 0:02:23]} 18. Nd2 {[%emt 0:03:30]} Bf4 {[%emt 0:10:11]} 19. Kd1 {[%emt 0:02:29]} Bxe4 {[%emt 0:04:13]} 20. Nxe4 {[%emt 0:00:08]} Rae8 {[%emt 0:00:39]} 21. f3 {[%emt 0:01:07]} Qh4 {[%emt 0:00:17]} 22. Qe2 {[%emt 0:00:25]} Kh8 {[%emt 0:00:38]} 23. Kc2 {[%emt 0:01:20]} Qxh5 {[%emt 0:00:52]} 24. Rg2 {[%emt 0:00:41]} Bh6 {[%emt 0:00:08]} 25. Rf1 {[%emt 0:01:17]} Qf5 {[%emt 0:01:11]} 26. Rg4 {[%emt 0:00:59]} Ne7 {[%emt 0:00:48]} 27. c4 {[%emt 0:01:34]} b5 {[%emt 0:09:03]} 28. c5 {[%emt 0:00:46]} Nd5 {[%emt 0:01:23]} 29. Qf2 {[%emt 0:05:57]} Ne3+ {[%emt 0:00:58]} 30. Kc3 {[%emt 0:00:05]} b4+ {[%emt 0:01:27]} 0-1

[Event "Kragero Resort Chess A 2019"]
[Site "Kragero"]
[Date "2019.02.23"]
[Round "7.20"]
[White "Kazarian, Anna-Maja"]
[Black "Fossan, Aleksander"]
[Result "1/2-1/2"]
[ECO "B27"]
[WhiteElo "2189"]
[BlackElo "2040"]
[Annotator "NA"]
[PlyCount "72"]
[EventDate "2019.02.20"]
[EventType "swiss"]
[EventCountry "NOR"]
[SourceTitle "playchess.com"]
[Source "ChessBase"]
[SourceQuality "1"]
[TimeControl "5400+30"]

1. e4 {[%emt 0:00:26]} c5 {[%emt 0:00:00]} 2. Nf3 {[%emt 0:00:07]} g6 {[%emt 0:00:00]} 3. d4 {[%emt 0:00:11]} cxd4 {[%emt 0:00:00]} 4. Qxd4 {[%emt 0:00:16]} Nf6 {[%emt 0:00:10]} 5. Nc3 {[%emt 0:00:05]} Nc6 {[%emt 0:00:34]} 6. Qa4 {[%emt 0:00:04]} d6 {[%emt 0:00:20]} 7. e5 {[%emt 0:00:23]} dxe5 {[%emt 0:00:10]} 8. Nxe5 {[%emt 0:00:04]} Bd7 {[%emt 0:00:30]} 9. Nxd7 {[%emt 0:00:07]} Qxd7 {[%emt 0:00:02]} 10. Be3 {[%emt 0:00:20]} Bg7 {[%emt 0:00:09]} 11. Rd1 {[%emt 0:00:05]} Qc8 {[%emt 0:00:09]} 12. Be2 {[%emt 0:00:13]} O-O {[%emt 0:00:08]} 13. O-O {[%emt 0:00:05]} a6 {[%emt 0:00:42]} 14. Rfe1 {[%emt 0:05:27]} b5 {[%emt 0:00:12]} 15. Qh4 {[%emt 0:02:39]} Qc7 {[%emt 0:00:07]} 16. a4 {[%emt 0:02:45]} b4 {[%emt 0:05:20]} 17. Nd5 {[%emt 0:03:16]} Nxd5 {[%emt 0:03:42]} 18. Rxd5 {[%emt 0:00:04]} Rfd8 {[%emt 0:11:24]} 19. Rc5 {[%emt 0:17:01]} Qd6 {[%emt 0:05:05]} 20. Bf3 {[%emt 0:15:56]} Nd4 {[%emt 0:07:20]} 21. Bxd4 {[%emt 0:00:28]} Qxd4 {[%emt 0:09:48]} 22. Qxd4 {[%emt 0:00:06]} Bxd4 {[%emt 0:00:05]} 23. Rc7 {[%emt 0:09:19]} Rac8 {[%emt 0:00:17]} 24. Rexe7 {[%emt 0:04:40]} Rxc7 {[%emt 0:00:28]} 25. Rxc7 {[%emt 0:00:03]} Bxb2 {[%emt 0:00:12]} 26. Be2 {[%emt 0:18:07]} Rd2 {[%emt 0:05:11]} 27. Bxa6 {[%emt 0:06:24]} Bd4 {[%emt 0:00:15]} 28. g3 {[%emt 0:02:08]} Rxf2 {[%emt 0:00:39]} 29. Kh1 {[%emt 0:00:18]} Bc3 {[%emt 0:01:01]} 30. Bd3 {[%emt 0:03:43]} Rd2 {[%emt 0:00:37]} 31. a5 {[%emt 0:02:45]} b3 {[%emt 0:01:44]} 32. cxb3 {[%emt 0:00:03]} Rxd3 {[%emt 0:00:18]} 33. a6 {[%emt 0:00:02]} Bd4 {[%emt 0:00:51]} 34. Rd7 {[%emt 0:01:42]} Rxb3 {[%emt 0:03:46]} 35. Rxd4 {[%emt 0:00:20]} Ra3 {[%emt 0:00:07]} 36. Rd6 {[%emt 0:03:57]} Ra2 {[%emt 0:00:11]} 1/2-1/2